bitfinex/quotes_ETHUSD_20251019
["timestamp","ask_amount","ask_price","bid_price","bid_amount"]
[1760865662775,0.27345877,3873.1,3872.7,0.1288]
[1760865662977,0.002,3873.1,3872.8,0.4731]
[1760865663308,0.002,3873.1,3872.9,0.4731]
[1760865665302,0.002,3873.1,3872.7,0.1288]
[1760865665507,0.002,3873.1,3873.0,0.4367]
[1760865666881,0.002,3873.1,3873.0,3.01867779]
[1760865667110,0.002,3873.1,3873.0,3.59163544]
[1760865669986,0.002,3873.1,3872.9,0.1288]
[1760865670213,0.002,3873.1,3873.0,2.58197779]
[1760865670818,0.002,3873.1,3872.9,0.1288]
[1760865671004,0.002,3873.1,3872.9,2.71084081]
[1760865671815,0.002,3873.1,3873.0,2.58197779]
[1760865672118,0.002,3873.1,3873.0,3.75343498]
[1760865673412,0.002,3873.1,3873.0,7.29450371]
[1760865674423,0.002,3873.1,3873.0,4.71252592]
[1760865674627,0.002,3873.1,3873.0,0.1288]
[1760865674917,0.002,3873.1,3872.8,0.1288]
[1760865676214,0.002,3873.1,3872.8,2.71090627]
[1760865676615,0.002,3873.1,3872.8,0.1288]
[1760865676810,0.002,3873.1,3872.8,2.71089639]
[1760865679125,0.002,3873.1,3872.9,2.5820289]
[1760865679527,0.002,3873.1,3872.8,3.17759237]
[1760865679830,0.002,3873.1,3872.8,0.5955]
[1760865684235,0.002,3873.1,3872.8,3.17760643]
[1760865684444,0.002,3873.1,3872.8,0.5955]
[1760865685116,0.002,3873.1,3872.8,6.71866231]
[1760865686138,0.002,3873.1,3872.8,3.66986873]
[1760865686331,0.002,3873.1,3872.9,3.04872596]
[1760865687549,0.002,3873.1,3873.0,2.58197779]
[1760865687712,0.002,3873.1,3873.0,3.17747779]
[1760865688111,0.002,3873.1,3873.0,0.5955]
[1760865688712,0.002,3873.1,3873.0,3.17747779]
[1760865691067,0.002,3873.1,3873.0,6.71854652]
[1760865692564,0.002,3873.1,3873.0,7.64860961]
[1760865699477,0.002,3873.1,3873.0,6.71854652]
[1760865700139,0.002,3873.1,3873.0,6.25184652]
[1760865701449,0.002,3873.1,3873.0,6.70534652]
[1760865708458,0.002,3873.1,3873.0,6.25184652]
[1760865709162,0.002,3873.1,3873.0,6.70534652]
[1760865715720,0.002,3873.1,3873.0,3.66986873]
[1760865720280,0.101,3873.1,3873.0,3.66986873]
[1760865720708,0.002,3873.1,3873.0,3.66986873]
[1760865724327,0.101,3873.1,3873.0,3.66986873]
[1760865724628,0.20850292,3873.1,3873.0,3.54106873]
[1760865726625,0.10950292,3873.1,3872.8,0.1288]
[1760865727138,0.002,3873.1,3872.8,0.1288]
[1760865727319,0.1308,3873.0,3872.8,0.1288]
[1760865729535,0.2298,3873.0,3872.8,0.1288]
[1760865729829,0.2298,3873.0,3872.5,0.001]
[1760865730030,0.099,3872.9,3872.5,0.001]
[1760865730397,0.28136769,3873.0,3872.5,0.001]
[1760865730646,0.099,3872.8,3872.5,0.001]
[1760865730794,7.47308379,3872.6,3872.5,0.001]
[1760865731195,7.57208379,3872.6,3872.5,0.001]
[1760865731404,8.69104652,3872.6,3872.5,0.001]
[1760865731613,12.54474652,3872.6,3872.5,0.001]
[1760865731917,13.17834652,3872.6,3872.5,0.001]
[1760865732111,13.58341107,3872.6,3872.5,0.001]
[1760865732423,11.45771107,3872.6,3872.5,0.001]
[1760865732722,24.82059907,3872.6,3872.5,0.001]
[1760865733390,43.18931707,3872.6,3872.5,0.001]
[1760865733592,38.44331707,3872.6,3872.5,0.001]
[1760865733793,34.33322707,3872.6,3872.5,0.001]
[1760865734248,30.40014307,3872.6,3872.5,0.001]
[1760865734455,32.29023707,3872.6,3872.5,0.001]
[1760865734608,31.53404307,3872.6,3872.5,0.001]
[1760865735418,27.70401107,3872.6,3872.5,0.001]
[1760865735623,30.07704307,3872.6,3872.5,0.001]
[1760865735804,27.70401107,3872.6,3872.5,0.001]
[1760865736320,11.45771107,3872.6,3872.5,0.001]
[1760865737979,6.46787176,3872.6,3872.5,0.001]
[1760865738832,3.25202728,3872.6,3872.5,0.001]
[1760865739018,2.23660739,3872.6,3872.5,0.4653]
[1760865739710,2.36540739,3872.6,3872.5,0.4653]
[1760865739909,2.0053551,3872.6,3872.5,0.4653]
[1760865740214,4.58759958,3872.6,3872.5,0.001]
[1760865741932,2.0053551,3872.6,3872.5,0.001]
[1760865743010,1.96034284,3872.6,3872.5,0.001]
[1760865743424,4.54258732,3872.6,3872.5,0.001]
[1760865743618,5.13635111,3872.6,3872.5,0.001]
[1760865745126,9.64416111,3872.6,3872.5,0.001]
[1760865745458,21.38265111,3872.6,3872.5,0.001]
[1760865745636,28.24207611,3872.6,3872.5,0.001]
[1760865746137,26.87487021,3872.6,3872.5,0.001]
[1760865746513,31.22660421,3872.6,3872.5,0.001]
[1760865746715,30.22660421,3872.6,3872.5,0.001]
[1760865747535,22.06126721,3872.6,3872.5,0.001]
[1760865747712,30.22660421,3872.6,3872.5,0.001]
[1760865747913,29.50660421,3872.6,3872.5,0.001]
[1760865748645,33.48940521,3872.6,3872.5,0.001]
[1760865749011,30.23850321,3872.6,3872.5,0.001]
[1760865749747,35.26992921,3872.6,3872.5,0.001]
[1760865750625,46.15867921,3872.6,3872.5,0.001]
[1760865751239,44.92117921,3872.6,3872.5,0.001]
[1760865751656,22.06126721,3872.6,3872.5,0.001]
[1760865751862,34.55473521,3872.6,3872.5,0.001]
[1760865752746,39.54124521,3872.6,3872.5,0.001]
[1760865753753,22.06126721,3872.6,3872.5,0.001]
[1760865753931,38.51599621,3872.6,3872.5,0.001]
[1760865755133,36.51599621,3872.6,3872.5,0.001]
[1760865755751,22.06126721,3872.6,3872.5,0.001]
[1760865755954,36.48491821,3872.6,3872.5,0.001]
[1760865756854,36.48691821,3872.6,3872.5,0.001]
[1760865757038,33.61543052,3872.6,3872.5,0.001]
[1760865757239,33.51643052,3872.6,3872.5,0.001]
[1760865757568,32.50489152,3872.6,3872.5,0.001]
[1760865757956,32.53075352,3872.6,3872.5,0.001]
[1760865758340,31.59032952,3872.6,3872.5,0.001]
[1760865758568,29.53189752,3872.6,3872.5,0.001]
[1760865759169,29.92930352,3872.6,3872.5,0.001]
[1760865759481,29.58964752,3872.6,3872.5,0.001]
[1760865759692,29.68864752,3872.6,3872.5,0.001]
[1760865760040,40.84205952,3872.6,3872.5,0.001]
[1760865760240,40.52094952,3872.6,3872.5,0.001]
[1760865761168,40.02888552,3872.6,3872.5,0.001]
[1760865761762,40.02888552,3872.6,3872.3,0.001]
[1760865761763,3.21597785,3872.4,3872.3,0.001]
[1760865761939,33.96121838,3872.4,3872.3,0.001]
[1760865762136,29.01052038,3872.4,3872.3,0.001]
[1760865762340,27.81578924,3872.4,3872.3,0.001]
[1760865762541,23.96057924,3872.4,3872.3,0.001]
[1760865763140,25.75476624,3872.4,3872.3,0.001]
[1760865763340,42.00106624,3872.4,3872.3,0.001]
[1760865764140,44.61265524,3872.4,3872.3,0.001]
[1760865765384,43.48173824,3872.4,3872.3,0.001]
[1760865766058,43.52675982,3872.4,3872.3,0.001]
[1760865766260,42.87253182,3872.4,3872.3,0.001]
[1760865766787,42.97153182,3872.4,3872.3,0.001]
[1760865766984,42.97153182,3872.4,3870.0,0.2195]
[1760865766985,2.58251123,3872.2,3870.0,0.2195]
[1760865767173,2.58357877,3870.6,3870.5,0.4417]
[1760865767373,9.20241808,3870.6,3870.5,0.4417]
[1760865767758,7.10557364,3870.6,3870.5,0.4417]
[1760865768154,9.68915241,3870.6,3870.5,0.4417]
[1760865774262,10.95645374,3870.6,3870.5,0.4417]
[1760865774485,10.95645374,3870.6,3870.5,0.4427]
[1760865780370,10.95645374,3870.6,3870.5,0.001]
[1760865781694,27.20275374,3870.6,3870.5,0.001]
[1760865782498,44.67617374,3870.6,3870.5,0.001]
[1760865782697,35.15044874,3870.6,3870.5,0.001]
[1760865783616,38.51332774,3870.6,3870.5,0.001]
[1760865783791,35.49018974,3870.6,3870.5,0.001]
[1760865783997,33.33176574,3870.6,3870.5,0.001]
[1760865784299,33.28673141,3870.6,3870.5,0.001]
[1760865784504,35.49892941,3870.6,3870.5,0.001]
[1760865785307,33.07344041,3870.6,3870.5,0.001]
[1760865785508,27.79131941,3870.6,3870.5,0.001]
[1760865785709,34.07549241,3870.6,3870.5,0.001]
[1760865786202,32.76501041,3870.6,3870.5,0.001]
[1760865786387,30.39220641,3870.6,3870.5,0.001]
[1760865786702,30.98152541,3870.6,3870.5,0.001]
[1760865787483,31.08052541,3870.6,3870.5,0.001]
[1760865787673,35.36105341,3870.6,3870.5,0.001]
[1760865788696,43.07345437,3870.6,3870.5,0.001]
[1760865789607,43.15437637,3870.6,3870.5,0.001]
[1760865790693,43.14831837,3870.6,3870.5,0.001]
[1760865790916,35.80678437,3870.6,3870.5,0.001]
[1760865791689,37.14824237,3870.6,3870.5,0.001]
[1760865791889,35.91069137,3870.6,3870.5,0.001]
[1760865792080,36.3160255,3870.6,3870.5,0.001]
[1760865792281,36.27098454,3870.6,3870.5,0.001]
[1760865792682,37.89761654,3870.6,3870.5,0.001]
[1760865792882,36.49452454,3870.6,3870.5,0.001]
[1760865793078,36.59352454,3870.6,3870.5,0.001]
[1760865793682,40.86717154,3870.6,3870.5,0.001]
[1760865794419,38.78837354,3870.6,3870.5,0.001]
[1760865794808,39.47425354,3870.6,3870.5,0.001]
[1760865795700,28.29565354,3870.6,3870.5,0.001]
[1760865795902,44.08975854,3870.6,3870.5,0.001]
[1760865796818,46.97206354,3870.6,3870.5,0.001]
[1760865797013,47.01710868,3870.6,3870.5,0.001]
[1760865797800,48.51478568,3870.6,3870.5,0.001]
[1760865798894,49.88306268,3870.6,3870.5,0.001]
[1760865799126,43.24154768,3870.6,3870.5,0.001]
[1760865799308,42.04727268,3870.6,3870.5,0.001]
[1760865799915,41.40516568,3870.6,3870.5,0.001]
[1760865800202,41.50416568,3870.6,3870.5,0.001]
[1760865800940,45.22436668,3870.6,3870.5,0.001]
[1760865802026,45.17832068,3870.6,3870.5,0.001]
[1760865802649,41.19459568,3870.6,3870.5,0.001]
[1760865802948,40.46228968,3870.6,3870.5,0.001]
[1760865803105,41.94266168,3870.6,3870.5,0.001]
[1760865804042,42.53173968,3870.6,3870.5,0.001]
[1760865804800,42.23003968,3870.6,3870.5,0.001]
[1760865805000,28.24169868,3870.6,3870.5,0.001]
[1760865805235,36.91727768,3870.6,3870.5,0.4291]
[1760865805644,36.91727768,3870.6,3870.5,0.001]
[1760865806139,42.00547068,3870.6,3870.5,0.001]
[1760865807035,39.49512568,3870.6,3870.5,0.001]
[1760865807245,41.24220168,3870.6,3870.5,0.001]
[1760865808247,41.29364068,3870.6,3870.5,0.001]
[1760865809012,40.49364068,3870.6,3870.5,0.001]
[1760865809212,28.24169868,3870.6,3870.5,0.001]
[1760865809417,34.22021268,3870.6,3870.5,0.4291]
[1760865810317,38.19764668,3870.6,3870.5,0.4291]
[1760865810748,36.44658668,3870.6,3870.5,0.001]
[1760865811354,39.05877368,3870.6,3870.5,0.001]
[1760865811726,38.82002468,3870.6,3870.5,0.001]
[1760865812257,33.29558537,3870.6,3870.5,0.001]
[1760865812545,23.20001991,3870.6,3870.5,0.4291]
[1760865812733,23.83361991,3870.6,3870.5,0.4291]
[1760865812937,16.73304514,3870.6,3870.5,0.4291]
[1760865813116,16.2463,3870.6,3870.5,0.4291]
[1760865813310,2.58357877,3870.6,3870.5,0.4291]
[1760865814619,3.01262799,3870.7,3870.5,0.4291]
[1760865814829,2.58357877,3870.6,3870.5,0.001]
[1760865815648,2.58357877,3870.6,3870.5,0.4606]
[1760865816336,3.21717877,3870.6,3870.5,0.001]
[1760865816652,3.26221739,3870.6,3870.5,0.001]
[1760865817232,19.50851739,3870.6,3870.5,0.001]
[1760865819650,26.45491839,3870.6,3870.5,0.001]
[1760865819849,35.09449839,3870.6,3870.5,0.001]
[1760865820152,34.22545992,3870.6,3870.5,0.001]
[1760865820750,23.86899692,3870.6,3870.5,0.001]
[1760865820965,33.38795992,3870.6,3870.5,0.001]
[1760865821769,23.86899692,3870.6,3870.5,0.001]
[1760865821976,27.36596992,3870.6,3870.5,0.001]
[1760865822826,23.86899692,3870.6,3870.5,0.001]
[1760865823033,31.11316382,3870.6,3870.5,0.001]
[1760865823733,31.0681252,3870.6,3870.5,0.001]
[1760865823926,31.6034422,3870.6,3870.5,0.001]
[1760865824129,32.2853422,3870.6,3870.5,0.001]
[1760865824950,36.4690802,3870.6,3870.5,0.001]
[1760865825160,33.8066762,3870.6,3870.5,0.001]
[1760865825369,30.9456882,3870.6,3870.5,0.001]
[1760865825538,29.8335502,3870.6,3870.5,0.001]
[1760865825936,32.8396012,3870.6,3870.5,0.001]
[1760865826134,31.8396012,3870.6,3870.5,0.001]
[1760865826345,31.88464281,3870.6,3870.5,0.001]
[1760865826969,24.95620981,3870.6,3870.5,0.001]
[1760865827135,34.13027381,3870.6,3870.5,0.001]
[1760865827564,32.13766291,3870.6,3870.5,0.001]
[1760865827935,24.55089991,3870.6,3870.5,0.001]
[1760865828163,32.88332991,3870.6,3870.5,0.001]
[1760865828745,32.61535091,3870.6,3870.5,0.001]
[1760865829165,33.10377091,3870.6,3870.5,0.001]
[1760865830065,24.55089991,3870.6,3870.5,0.001]
[1760865830265,4.94571287,3869.8,3869.7,0.001]
[1760865830480,26.91938939,3869.8,3869.7,0.001]
[1760865830679,27.67489092,3869.8,3869.7,0.001]
[1760865830839,27.71994294,3869.8,3869.7,0.001]
[1760865831038,36.54081651,3869.8,3869.7,0.001]
[1760865831283,39.17329604,3869.8,3869.7,0.001]
[1760865831977,33.38860104,3869.8,3869.7,0.001]
[1760865832282,12.41408252,3869.8,3869.7,0.001]
[1760865833177,15.08765352,3869.8,3869.7,0.001]
[1760865833377,31.33395352,3869.8,3869.7,0.001]
[1760865833598,27.45499052,3869.8,3869.7,0.001]
[1760865833961,27.45499052,3869.8,3869.7,0.4515]
[1760865834175,24.37858752,3869.8,3869.7,0.4515]
[1760865834347,29.91525952,3869.8,3869.7,0.4515]
[1760865834549,29.91525952,3869.8,3869.7,0.001]
[1760865835188,29.8702075,3869.8,3869.7,0.001]
[1760865835483,30.7529545,3869.8,3869.7,0.001]
[1760865835981,30.0338905,3869.8,3869.7,0.001]
[1760865836180,29.4734275,3869.8,3869.7,0.001]
[1760865836492,30.0494275,3869.8,3869.7,0.001]
[1760865837409,31.4084275,3869.8,3869.7,0.001]
[1760865837569,31.23794322,3869.8,3869.7,0.001]
[1760865838466,33.57513922,3869.8,3869.7,0.001]
[1760865839399,39.85726122,3869.8,3869.7,0.001]
[1760865839560,38.61976122,3869.8,3869.7,0.001]
[1760865839895,33.65127122,3869.8,3869.7,0.001]
[1760865840385,31.38083922,3869.8,3869.7,0.001]
[1760865841268,28.86832622,3869.8,3869.7,0.001]
[1760865841481,26.23584669,3869.8,3869.7,0.001]
[1760865841684,21.11250769,3869.8,3869.7,0.4515]
[1760865841963,21.23706459,3869.8,3869.7,0.4515]
[1760865842266,0.67865172,3869.8,3869.7,0.4515]
[1760865842583,4.99076459,3869.8,3869.7,0.4515]
[1760865842761,4.99076459,3869.8,3869.7,0.4015]
[1760865843140,4.94571287,3869.8,3869.7,0.4015]
[1760865845004,5.35107322,3869.8,3869.7,0.4015]
[1760865845183,5.35107322,3869.8,3869.7,0.3515]
[1760865846464,5.39611982,3869.8,3869.7,0.3515]
[1760865847168,5.07457965,3869.7,3869.3,0.001]
[1760865847415,14.30694096,3869.7,3869.3,0.001]
[1760865847561,23.05923196,3869.7,3869.3,0.001]
[1760865848054,22.77072096,3869.7,3869.3,0.001]
[1760865848400,2.58458039,3869.1,3869.0,0.1865]
[1760865848609,0.6336,3869.0,3868.9,0.4434]
[1760865849681,3.21824719,3869.0,3868.9,0.4434]
[1760865849890,3.21824719,3869.0,3868.9,0.001]
[1760865850385,3.21824719,3869.0,3868.9,0.444]
[1760865850892,4.08009368,3869.0,3868.9,0.001]
[1760865851292,20.32639368,3869.0,3868.9,0.001]
[1760865852623,20.73183043,3869.0,3868.9,0.001]
[1760865854393,25.09379843,3869.0,3868.9,0.001]
[1760865854718,27.13240468,3869.0,3868.9,0.001]
[1760865854925,27.09650568,3869.0,3868.9,0.001]
[1760865855597,22.49739368,3869.0,3868.9,0.001]
[1760865855802,27.62150568,3869.0,3868.9,0.001]
[1760865856813,27.02150568,3869.0,3868.9,0.001]
[1760865857197,27.16700568,3869.0,3868.9,0.001]
[1760865857397,27.21206422,3869.0,3868.9,0.001]
[1760865857791,39.91970677,3869.0,3868.9,0.001]
[1760865857997,38.48325477,3869.0,3868.9,0.001]
[1760865858229,33.87931477,3869.0,3868.9,0.001]
[1760865858801,22.94792877,3869.0,3868.9,0.001]
[1760865859018,34.97154777,3869.0,3868.9,0.001]
[1760865859530,0.6336,3868.5,3868.4,0.001]
[1760865859701,33.05451356,3868.5,3868.4,0.001]
[1760865859903,15.88275356,3868.5,3868.4,0.001]
[1760865860097,11.98642925,3868.5,3868.4,0.001]
[1760865860302,28.23272925,3868.5,3868.4,0.001]
[1760865860538,30.04842874,3868.5,3868.4,0.001]
[1760865860915,36.01440474,3868.5,3868.4,0.001]
[1760865861436,26.94361644,3868.5,3868.4,0.001]
[1760865861624,31.83445575,3868.5,3868.4,0.001]
[1760865862130,37.34842175,3868.5,3868.4,0.001]
[1760865863130,40.16820275,3868.5,3868.4,0.001]
[1760865863333,40.31520275,3868.5,3868.4,0.001]
[1760865864013,43.41866875,3868.5,3868.4,0.001]
[1760865865236,45.91461075,3868.5,3868.4,0.001]
[1760865865905,43.79767975,3868.5,3868.4,0.001]
[1760865866100,43.77224975,3868.5,3868.4,0.001]
[1760865866317,42.37224975,3868.5,3868.4,0.001]
[1760865866518,41.95005475,3868.5,3868.4,0.001]
[1760865867112,42.09705475,3868.5,3868.4,0.001]
[1760865867318,41.95005475,3868.5,3868.4,0.001]
[1760865867509,41.55005475,3868.5,3868.4,0.001]
[1760865867706,40.31255475,3868.5,3868.4,0.001]
[1760865868140,28.40861775,3868.5,3868.4,0.001]
[1760865868344,41.86069375,3868.5,3868.4,0.001]
[1760865869250,50.62894875,3868.5,3868.4,0.001]
[1760865869455,41.54941475,3868.5,3868.4,0.001]
[1760865870432,43.50001075,3868.5,3868.4,0.001]
[1760865871208,3.2189154,3868.0,3867.9,0.396]
[1760865871408,8.10975471,3868.0,3867.9,0.396]
[1760865871610,0.6336,3867.8,3867.2,0.2292]
[1760865872010,2.58551593,3867.7,3867.2,0.2292]
[1760865872255,16.2463,3867.5,3867.2,0.2292]
[1760865873261,18.83196444,3867.5,3867.2,0.2292]
[1760865873465,18.83196444,3867.5,3867.3,0.443]
[1760865873849,16.2463,3867.5,3867.4,0.443]
[1760865874231,7.47643028,3867.6,3867.4,0.443]
[1760865874633,2.58564964,3867.5,3867.2,0.2292]
[1760865874838,2.58564964,3867.5,3867.3,0.4321]
[1760865875276,18.83194964,3867.5,3867.3,0.4321]
[1760865875776,2.5857165,3867.4,3867.2,0.2292]
[1760865876477,2.5857165,3867.4,3867.3,0.4321]
[1760865877278,18.8320165,3867.4,3867.3,0.4321]
[1760865878352,16.2463,3867.4,3867.3,0.4321]
[1760865878749,18.8320165,3867.4,3867.3,0.4321]
[1760865879288,18.8320165,3867.4,3867.1,0.001]
[1760865879581,2.58578336,3867.3,3867.2,0.4321]
[1760865879780,2.58578336,3867.3,3867.1,0.2284]
[1760865880385,16.2463,3867.2,3867.1,0.2284]
[1760865880962,18.83215022,3867.2,3867.1,0.6605]
[1760865881161,16.2463,3867.2,3867.1,0.6605]
[1760865881366,0.1288,3867.3,3867.1,0.6605]
[1760865881568,2.58572105,3867.4,3867.2,0.4321]
[1760865883257,2.58572105,3867.4,3867.1,0.2284]
[1760865883459,2.58572105,3867.4,3867.2,0.4321]
[1760865883693,2.58579527,3867.3,3867.1,0.2284]
[1760865883873,2.58573679,3867.4,3867.1,0.2284]
[1760865884168,2.58573679,3867.4,3867.2,0.4321]
[1760865884376,2.58573679,3867.4,3867.1,0.2284]
[1760865884377,16.2463,3867.3,3867.1,0.2284]
[1760865884690,16.2463,3867.3,3867.2,0.4321]
[1760865887284,16.2463,3867.3,3867.1,0.2284]
[1760865887687,18.83208408,3867.3,3867.1,0.6605]
[1760865888271,2.58578408,3867.3,3867.2,0.4321]
[1760865888477,7.96072983,3867.5,3867.2,0.4321]
[1760865888797,2.58571583,3867.5,3867.2,0.4321]
[1760865888996,2.58572997,3867.4,3867.2,0.4321]
[1760865890286,16.2463,3867.3,3867.2,0.4321]
[1760865890507,18.83208336,3867.3,3867.2,0.4321]
[1760865891065,16.2463,3867.3,3867.2,0.4321]
[1760865891264,0.6820353,3869.0,3867.2,0.4321]
[1760865891265,16.2463,3868.4,3867.2,0.4321]
[1760865891496,16.2463,3868.4,3868.3,0.2274]
[1760865891899,16.2463,3868.4,3868.1,0.4321]
[1760865892097,2.71403222,3868.2,3868.0,0.2274]
[1760865892298,2.71403222,3868.2,3867.6,0.4321]
[1760865892299,0.1288,3868.2,3867.6,0.4321]
[1760865892479,2.58550882,3867.8,3867.1,0.2284]
[1760865892677,2.71430882,3867.8,3867.2,0.4321]
[1760865892882,2.58553742,3867.7,3867.2,0.4321]
[1760865893808,2.58559853,3867.6,3867.3,0.4321]
[1760865894103,2.71446085,3867.5,3867.1,0.2284]
[1760865894303,2.71445643,3867.5,3867.1,0.2284]
[1760865894509,0.1288,3867.3,3867.1,0.2284]
[1760865894806,0.1288,3867.3,3867.1,0.001]
[1760865895308,16.2463,3867.2,3867.1,0.001]
[1760865896287,16.3751,3867.3,3867.1,0.001]
[1760865898713,16.3751,3867.3,3866.8,0.001]
[1760865898714,2.58605084,3866.9,3866.8,0.001]
[1760865898926,5.41286859,3866.9,3866.8,0.001]
[1760865899211,16.2083088,3866.9,3866.8,0.001]
[1760865899600,5.98249758,3866.9,3866.8,0.001]
[1760865899802,37.81256611,3866.9,3866.8,0.001]
[1760865899980,29.99813511,3866.9,3866.8,0.001]
[1760865900175,45.99441311,3866.9,3866.8,0.001]
[1760865900481,2.5868175,3865.8,3864.9,0.4321]
[1760865900677,2.58692162,3865.6,3864.9,0.4321]
[1760865900877,2.58692162,3865.6,3865.1,0.4321]
[1760865901115,0.77799921,3865.5,3865.2,0.4321]
[1760865901413,3.36499925,3865.5,3865.2,0.4321]
[1760865902210,0.77799921,3865.5,3864.8,0.4321]
[1760865902512,0.77799921,3865.5,3864.1,4.31592398]
[1760865902691,3.36500282,3865.5,3865.1,0.4321]
[1760865902891,0.8230909,3865.5,3864.4,2.5877226]
[1760865903197,0.77799921,3865.5,3865.2,0.4321]
[1760865904493,0.77799921,3865.5,3865.3,0.4321]
[1760865904695,0.77799921,3865.5,3865.4,0.4649]
[1760865906123,0.77799921,3865.5,3864.4,2.58767266]
[1760865906305,0.77799921,3865.5,3865.1,0.4649]
[1760865906622,3.36499654,3865.5,3865.2,0.4649]
[1760865906815,2.58705838,3865.4,3864.8,0.4649]
[1760865907039,4.89083931,3865.4,3865.1,0.4649]
[1760865907328,4.89083931,3865.4,3864.0,0.2274]
[1760865907329,17.07188241,3865.3,3864.8,0.4649]
[1760865907633,2.58720678,3865.2,3864.8,0.4649]
[1760865907935,2.58720678,3865.2,3864.4,0.4649]
[1760865907936,0.196,3865.2,3864.4,0.4649]
[1760865908295,16.2463,3864.9,3864.4,0.4649]
[1760865908493,16.2463,3864.9,3864.5,0.4649]
[1760865908719,16.2463,3864.9,3864.6,0.5937]
[1760865909325,16.2463,3865.0,3864.6,0.5937]
[1760865909729,16.2463,3865.0,3864.6,0.1288]
[1760865910027,16.2463,3865.0,3864.7,0.4649]
[1760865910237,16.2463,3864.8,3864.7,0.4649]
[1760865910725,16.2463,3864.8,3864.6,0.1288]
[1760865911529,18.12965601,3864.8,3864.6,0.1288]
[1760865911730,2.58780698,3864.3,3863.9,0.4452]
[1760865912035,2.58785777,3864.2,3863.7,0.6726]
[1760865912241,0.1288,3864.3,3863.7,0.6726]
[1760865912436,0.1288,3864.3,3863.7,0.2274]
[1760865912646,2.71659849,3864.3,3863.7,0.2274]
[1760865912808,3.73609681,3864.3,3863.7,0.2274]
[1760865913441,16.2463,3863.9,3863.7,0.2274]
[1760865913809,16.2463,3863.9,3863.8,0.4452]
[1760865914311,0.53474201,3864.3,3863.8,0.4452]
[1760865914510,0.53474201,3864.3,3863.9,0.4452]
[1760865914729,0.4452,3864.2,3863.9,0.4452]
[1760865915508,0.4452,3864.2,3864.1,0.2248]
[1760865915838,16.82614542,3864.3,3864.1,0.2248]
[1760865915839,16.2463,3864.3,3864.2,2.58885777]
[1760865916043,16.2463,3864.3,3864.2,3.03405777]
[1760865916237,0.04509966,3865.0,3864.3,2.5877344]
[1760865916446,0.04509966,3865.0,3864.3,3.0329344]
[1760865916647,0.04509966,3865.0,3864.4,0.4452]
[1760865916848,16.2463,3865.6,3864.9,2.58737641]
[1760865917019,16.2913944,3865.6,3864.9,2.58737641]
[1760865917345,0.0450944,3865.6,3865.0,0.4452]
[1760865917513,0.0450944,3865.6,3865.5,0.2248]
[1760865917911,0.0450944,3865.6,3865.5,0.67]
[1760865918656,16.2463,3866.1,3865.5,0.67]
[1760865919324,16.2463,3866.2,3865.5,0.67]
[1760865919756,0.1532,3865.6,3864.7,0.4452]
[1760865919957,0.1532,3865.6,3864.3,0.4452]
[1760865919958,0.1965,3865.5,3864.3,0.4452]
[1760865920157,2.78349591,3865.5,3864.4,2.5877186]
[1760865920332,0.1965,3865.5,3864.4,0.4452]
[1760865920531,4.89083931,3865.2,3864.1,0.2248]
[1760865920859,2.58733089,3865.0,3864.1,0.67]
[1760865921033,2.58752296,3864.7,3863.7,0.6726]
[1760865921357,21.13713931,3864.8,3864.0,0.4452]
[1760865921560,0.1993,3864.6,3863.7,0.6726]
[1760865921759,3.82218023,3864.6,3863.7,0.6726]
[1760865921962,2.58773598,3864.4,3863.7,0.2274]
[1760865922129,2.78697379,3864.5,3863.5,0.4452]
[1760865922329,16.4456,3864.3,3863.5,0.4452]
[1760865922838,16.4456,3864.3,3863.4,0.2248]
[1760865923624,16.2463,3864.3,3863.5,2.58832638]
[1760865923825,16.51874804,3864.3,3863.5,0.4452]
[1760865924861,23.16289304,3864.3,3863.2,3.03372358]
[1760865925458,19.51874804,3864.3,3863.5,0.4452]
[1760865925883,19.64754804,3864.3,3863.6,0.1288]
[1760865926170,16.64754804,3864.3,3863.6,0.1288]
[1760865926367,0.1288,3864.3,3864.0,0.2248]
[1760865926579,0.574,3864.3,3864.0,0.2248]
[1760865926937,0.574,3864.3,3863.8,0.4452]
[1760865927236,0.574,3864.3,3863.7,0.2248]
[1760865929469,16.8203,3864.3,3863.7,0.2248]
[1760865929640,16.8203,3864.3,3863.8,0.4452]
[1760865930360,0.574,3864.3,3863.8,0.4452]
[1760865931058,0.574,3864.3,3864.2,0.4462]
[1760865933776,0.40592207,3864.5,3864.2,0.4462]
[1760865933981,0.85212207,3864.5,3864.3,0.4452]
[1760865934170,0.85212207,3864.5,3864.4,0.4452]
[1760865934372,0.40592207,3864.5,3864.4,0.4452]
[1760865934877,0.40592207,3864.5,3864.2,0.001]
[1760865935071,0.1003,3864.4,3864.2,0.001]
[1760865935382,0.32226922,3864.3,3864.2,0.001]
[1760865937279,0.45106922,3864.3,3864.2,0.001]
[1760865938277,16.69736922,3864.3,3864.2,0.001]
[1760865939048,19.28516002,3864.3,3864.2,0.001]
[1760865939383,16.69736922,3864.3,3864.2,0.001]
[1760865939959,19.38546002,3864.3,3864.2,0.001]
[1760865940287,0.34914953,3864.2,3863.6,0.1288]
[1760865940769,2.93700952,3864.2,3863.6,0.1288]
[1760865940984,2.98211785,3864.2,3863.6,0.1288]
[1760865942288,16.2463,3864.1,3863.6,0.1288]
[1760865942995,16.2463,3864.1,3863.6,0.5669]
[1760865943301,16.2463,3864.0,3863.6,0.5669]
[1760865944097,16.2463,3864.0,3863.6,0.1288]
[1760865944266,4.89083931,3863.7,3863.1,0.6635]
[1760865944471,18.22427941,3864.0,3863.2,0.4381]